fUST/lending_fUST_20241127
["ID","MTS","AMOUNT","RATE_DAILY","PERIOD"]
[343551560,1732719055595,-372.37437637,0.00025291,3]
[343551561,1732719055606,-500.0,0.00025291,3]
[343551562,1732719055616,-566.38083477,0.00025291,3]
[343551563,1732719055625,-632.829666,0.00025291,7]
[343551564,1732719055635,-632.829666,0.00025291,7]
[343551565,1732719055644,-500.0,0.00025291,3]
[343551566,1732719055653,-500.0,0.00025291,3]
[343551567,1732719055662,-500.0,0.00025291,3]
[343551568,1732719055671,-588.6144559,0.00025291,3]
[343551569,1732719055680,-632.829666,0.00025291,7]
[343551570,1732719055690,-632.829666,0.00025291,7]
[343551571,1732719055700,-526.39119397,0.00025291,3]
[343551572,1732719055709,-525.12726209,0.00025291,3]
[343551573,1732719055720,-500.0,0.00025291,3]
[343551574,1732719055730,-549.61131906,0.00025291,3]
[343551575,1732719055741,-500.0,0.00025291,2]
[343551576,1732719055751,-324.41381404,0.00025291,2]
[343551577,1732719055762,-527.29624728,0.00025291,3]
[343551578,1732719055772,-500.0,0.00025291,3]
[343551579,1732719055781,-547.0089658,0.00025291,3]
[343551580,1732719055790,-406.39870849,0.00025291,3]
[343551581,1732719055802,-500.0,0.00025291,3]
[343551582,1732719055811,-501.00909131,0.00025291,3]
[343551583,1732719055821,-502.13867193,0.00025291,3]
[343551584,1732719055831,-500.0,0.00025291,3]
[343551585,1732719055840,-516.79501647,0.00025291,3]
[343551586,1732719055849,-420.0,0.00025454,2]
[343551587,1732719055858,-632.829666,0.000257,7]
[343551588,1732719055867,-632.829666,0.000257,7]
[343551589,1732719055877,-420.0,0.00025805,2]
[343551590,1732719055887,-302.69733596,0.0002587,2]
[343551591,1732719055896,-259.52565488,0.00025893,2]
[343551592,1732719055908,-675.19284361,0.00025998,2]
[343551593,1732719055918,-302.69733596,0.00026129,2]
[343551594,1732719055928,-465.13356313,0.00026387,4]
[343551595,1732719055938,-10594.88692512,0.00026538,2]
[343551596,1732719055947,-632.829666,0.00026637,7]
[343551597,1732719055957,-632.829666,0.00026637,7]
[343551598,1732719055969,-632.829666,0.00026638,7]
[343551599,1732719055979,-632.829666,0.00026638,7]
[343551600,1732719055989,-1194.21384737,0.00026669,2]
[343551601,1732719055998,-500.0,0.00026673,2]
[343551602,1732719056008,-500.4705546,0.00026673,2]
[343551603,1732719056017,-3000.0,0.000267,7]
[343551604,1732719056026,-675.19284361,0.00026719,2]
[343551605,1732719056036,-151.813813,0.0002713,7]
[343551606,1732719056047,-500.0,0.0002715,2]
[343551607,1732719056058,-500.0,0.0002715,2]
[343551608,1732719056067,-259.52565488,0.00027229,2]
[343551609,1732719056077,-591.61360804,0.00027248,2]
[343551610,1732719056087,-151.0,0.00027397,7]
[343551611,1732719056097,-151.581208,0.00027397,7]
[343551612,1732719056107,-151.0,0.00027397,7]
[343551613,1732719056116,-151.0,0.00027397,7]
[343551614,1732719056127,-151.0,0.00027397,7]
[343551615,1732719056137,-151.0,0.00027397,7]
[343551616,1732719056146,-151.0,0.00027397,7]
[343551617,1732719056156,-151.0,0.00027397,7]
[343551618,1732719056165,-151.0,0.00027397,7]
[343551619,1732719056175,-151.0,0.00027397,7]
[343551620,1732719056184,-270.752904,0.00027397,7]
[343551621,1732719056194,-500.0,0.00027397,3]
[343551622,1732719056204,-541.50417437,0.00027397,3]
[343551623,1732719056214,-675.19284361,0.0002744,2]
[343551624,1732719056225,-150.01,0.00027496,2]
[343551625,1732719056234,-2527.75406117,0.00027496,2]
[343551626,1732719056244,-500.0,0.00027531,2]
[343551627,1732719056255,-500.0,0.00027549,2]
[343551628,1732719056265,-587.0,0.00027619,2]
[343551629,1732719056275,-500.0,0.00027631,2]
[343551630,1732719056286,-500.0,0.00027698,5]
[343551631,1732719056296,-1000.0,0.00027698,5]
[343551632,1732719056308,-1194.21384737,0.00027762,2]
[343551633,1732719056322,-151.0,0.00027787,5]
[343551634,1732719056332,-500.0,0.00027798,3]
[343551635,1732719056342,-500.0,0.00027798,3]
[343551636,1732719056352,-150.19,0.00027798,3]
[343551637,1732719056363,-500.0,0.00027798,3]
[343551638,1732719056374,-150.17,0.00027799,3]
[343551639,1732719056386,-150.17,0.00027799,3]
[343551640,1732719056397,-150.17,0.00027799,3]
[343551641,1732719056407,-299.89991911,0.00027799,3]
[343551642,1732719056417,-150.17,0.00027799,3]
[343551643,1732719056427,-150.17,0.00027799,2]
[343551644,1732719056437,-500.0,0.00027799,3]
[343551645,1732719056447,-500.0,0.00027799,3]
[343551646,1732719056456,-150.17,0.00027799,2]
[343551647,1732719056467,-150.17,0.00027799,3]
[343551648,1732719056477,-150.17,0.00027799,3]
[343551649,1732719056486,-500.0,0.00027814,2]
[343551650,1732719056495,-500.0,0.0002787,2]
[343551651,1732719056505,-857.6075034,0.00027882,2]
[343551652,1732719056516,-261.3,0.000279,2]
[343551653,1732719056525,-310.03174298,0.00027939,2]
[343551654,1732719056534,-38313.50171937,0.00028,30]
[343551655,1732719056544,-500.0,0.00028,120]
[343551656,1732719056556,-1999.99999997,0.00028,2]
[343551657,1732719056565,-261.538447,0.0002806,2]
[343551658,1732719056574,-171.99427,0.0002806,2]
[343551659,1732719056584,-2161.785299,0.0002806,2]
[343551660,1732719056594,-369.758682,0.0002806,2]
[343551661,1732719056603,-172.085725,0.0002806,2]
[343551662,1732719056612,-345.487956,0.0002806,2]
[343551663,1732719056622,-858.18883392,0.00028072,3]
[343551664,1732719056631,-500.0,0.00028072,3]
[343551665,1732719056641,-500.0,0.00028072,3]
[343551666,1732719056651,-150.31955154,0.00028073,3]
[343551667,1732719056661,-150.19,0.00028073,3]
[343551668,1732719056671,-150.19,0.00028073,3]
[343551669,1732719056682,-217.5181977,0.00028073,3]
[343551670,1732719056692,-500.0,0.00028073,3]
[343551671,1732719056703,-749.35,0.00028073,3]
[343551672,1732719056715,-150.17,0.00028073,3]
[343551673,1732719056725,-164.35290126,0.00028073,3]
[343551674,1732719056736,-675.19284361,0.0002816,2]
[343551675,1732719056745,-151.0,0.00028271,6]
[343551676,1732719056755,-337.44528694,0.0002828,2]
[343551677,1732719056765,-500.0,0.00028346,3]
[343551678,1732719056775,-500.0,0.00028346,3]
[343551679,1732719056785,-500.0,0.00028347,3]
[343551680,1732719056794,-150.17,0.00028347,3]
[343551681,1732719056806,-587.0,0.00028385,2]
[343551682,1732719056816,-1000.0,0.000284,2]
[343551683,1732719056825,-261.538447,0.0002841,2]
[343551684,1732719056834,-2161.785299,0.0002841,2]
[343551685,1732719056843,-369.758682,0.0002841,2]
[343551686,1732719056853,-345.487956,0.0002841,2]
[343551687,1732719056863,-259.52565488,0.00028564,2]
[343551688,1732719056872,-500.0,0.00028621,3]
[343551689,1732719056882,-203.5440026,0.00028621,3]
[343551690,1732719056891,-150.571,0.00028695,2]
[343551691,1732719056901,-531.0,0.00028695,2]
[343551692,1732719056910,-1110.093,0.00028695,2]
[343551693,1732719056920,-2377.0,0.00028695,2]
[343551694,1732719056929,-247.92836528,0.000287,5]
[343551695,1732719056938,-151.0,0.00028756,6]
[343551696,1732719056948,-172.085725,0.00028761,2]
[343551697,1732719056957,-261.538447,0.00028761,2]
[343551698,1732719056967,-2161.785299,0.00028761,2]
[343551699,1732719056976,-369.758682,0.00028761,2]
[343551700,1732719056985,-345.487956,0.00028761,2]
[343551701,1732719056995,-500.0,0.00028767,2]
[343551702,1732719057005,-1653.96888357,0.00028852,2]
[343551703,1732719057014,-1194.21384737,0.00028856,2]
[343551704,1732719057024,-675.19284361,0.00028881,2]
[343551705,1732719057033,-500.0,0.00028895,3]
[343551706,1732719057042,-275.5,0.000289,2]
[343551707,1732719057053,-250.0,0.00028965,2]
[343551708,1732719057063,-506.41494876,0.00028973,5]
[343551709,1732719057072,-500.0,0.00028973,5]
[343551710,1732719057081,-500.0,0.00028973,5]
[343551711,1732719057091,-45186.05020382,0.00029,7]
[343551712,1732719057100,-200.0,0.0002902,24]
[343551713,1732719057111,-261.538447,0.00029112,2]
[343551714,1732719057121,-2161.785299,0.00029112,2]
[343551715,1732719057130,-369.758682,0.00029112,2]
[343551716,1732719057139,-345.487956,0.00029112,2]
[343551717,1732719057149,-864.87603597,0.00029169,3]
[343551718,1732719057159,-151.0,0.0002924,6]
[343551719,1732719057169,-153.0,0.00029288,30]
[343551720,1732719057179,-450.01802,0.00029381,15]
[343551721,1732719057188,-157.05,0.0002939,120]
[343551722,1732719057198,-2732.18144447,0.000294,7]
[343551723,1732719057207,-172.085725,0.00029463,2]
[343551724,1732719057216,-261.538447,0.00029463,2]
[343551725,1732719057226,-2161.785299,0.00029463,2]
[343551726,1732719057235,-369.758682,0.00029463,2]
[343551727,1732719057244,-345.487956,0.00029463,2]
[343551728,1732719057253,-500.0,0.00029557,11]
[343551729,1732719057263,-675.19284361,0.00029602,2]
[343551730,1732719057272,-32792.29933288,0.0002961,2]
[343551731,1732719057281,-7000.67349825,0.00029638,7]
[343551732,1732719057290,-500.0,0.00029673,5]
[343551733,1732719057300,-500.0,0.00029673,5]
[343551734,1732719057313,-3000.0,0.000297,2]
[343551735,1732719057323,-153.44,0.000297,31]
[343551736,1732719057333,-153.44,0.000297,31]
[343551737,1732719057343,-153.44,0.000297,31]
[343551738,1732719057352,-153.44,0.000297,31]
[343551739,1732719057362,-153.44,0.000297,31]
[343551740,1732719057371,-153.44,0.000297,31]
[343551741,1732719057381,-153.44,0.000297,31]
[343551742,1732719057390,-153.44,0.000297,31]
[343551743,1732719057400,-153.44,0.000297,31]
[343551744,1732719057409,-153.44,0.000297,31]
[343551745,1732719057418,-3000.0,0.0002971,2]
[343551746,1732719057427,-3000.0,0.0002972,2]
[343551747,1732719057437,-500.0,0.00029721,11]
[343551748,1732719057446,-151.0,0.00029725,6]
[343551749,1732719057456,-3000.0,0.0002973,2]
[343551750,1732719057464,-3000.0,0.0002974,2]
[343551751,1732719057474,-3000.0,0.0002975,2]
[343551752,1732719057485,-3000.0,0.0002976,2]
[343551753,1732719057494,-3000.0,0.0002977,2]
[343551754,1732719057503,-3000.0,0.0002978,2]
[343551755,1732719057512,-3000.0,0.0002979,2]
[343551756,1732719057522,-3000.0,0.000298,2]
[343551757,1732719057530,-3000.0,0.0002981,2]
[343551758,1732719057541,-3000.0,0.0002982,2]
[343551759,1732719057550,-3000.0,0.0002983,2]
[343551760,1732719057561,-3000.0,0.0002984,2]
[343551761,1732719057570,-3000.0,0.0002985,2]
[343551762,1732719057580,-5067.953038,0.0002986,2]
[343551763,1732719057589,-300.0,0.000299,2]
[343551764,1732719057600,-259.52565488,0.000299,2]
[343551765,1732719057610,-500.0,0.00029909,2]
[343551766,1732719057619,-3200.0,0.00029909,2]
[343551767,1732719057628,-151.0,0.00029909,2]
[343551768,1732719057637,-600.0,0.00029931,2]
[343551769,1732719057647,-1194.21384737,0.00029949,2]
[343551770,1732719057656,-823.0,0.00029968,2]
[343551771,1732719057665,-1440.55,0.0003,3]
[343551772,1732719057674,-598.0,0.0003,2]
[343551773,1732719057684,-596.0,0.0003,2]
[343551774,1732719057693,-596.0,0.0003,2]
[343551775,1732719057702,-596.0,0.0003,2]
[343551776,1732719057711,-9873.0,0.0003,2]
[343551777,1732719057720,-9869.0,0.0003,2]
[343551778,1732719057729,-9869.0,0.0003,2]
[343551779,1732719057738,-9869.0,0.0003,2]
[343551780,1732719057748,-9869.0,0.0003,2]
[343551781,1732719057757,-9869.0,0.0003,2]
[343551782,1732719057766,-151.0,0.0003,120]
[343551783,1732719057775,-151.0,0.0003,120]
[343551784,1732719057784,-500.0,0.0003,120]
[343551785,1732719057793,-192.6955,0.0003,2]
[343551786,1732719057804,-592.167,0.0003,120]
[343551787,1732719057813,-544.07048006,0.0003,2]
[343551788,1732719057822,-64000.0,0.0003,15]
[343551789,1732719057831,-1500.0,0.0003,2]
[343551790,1732719057841,-7970.97234951,0.0003,10]
[343551791,1732719057850,-1023.82954509,0.0003,7]
[343551792,1732719057860,-364.22729953,0.0003,30]
[343551793,1732719057869,-222.0,0.0003,2]
[343551794,1732719057878,-500.0,0.00030136,4]
[343551795,1732719057887,-254.58160536,0.00030137,2]
[343551796,1732719057896,-3070.808366,0.00030137,120]
[343551797,1732719057906,-404.27529608,0.00030137,60]
[343551798,1732719057915,-10000.0,0.00030207,3]
[343551799,1732719057925,-151.0,0.00030209,7]
[343551800,1732719057934,-805.31941209,0.00030221,5]
[343551801,1732719057943,-600.0,0.00030243,2]
[343551802,1732719057953,-675.19284361,0.00030322,2]
[343551803,1732719057962,-151.19004701,0.00030387,2]
[343551804,1732719057972,-2500.0,0.00030436,3]
[343551805,1732719057981,-2500.0,0.00030444,3]
[343551806,1732719057991,-2500.0,0.00030453,3]
[343551807,1732719058001,-2500.0,0.00030462,3]
[343551808,1732719058010,-600.0,0.00030554,2]
[343551809,1732719058020,-151.0,0.00030694,7]
[343551810,1732719058029,-1556.32,0.000307,2]
[343551811,1732719058038,-150.0,0.000308,2]
[343551812,1732719058048,-600.0,0.00030866,2]
[343551813,1732719058058,-300.0,0.000309,4]
[343551814,1732719058068,-1000.0,0.00030951,2]
[343551815,1732719058076,-1000.0,0.00030977,2]
[343551816,1732719058086,-81505.060697,0.00031,15]
[343551817,1732719058095,-798.98421588,0.00031,2]
[343551818,1732719058105,-50000.0,0.00031,29]
[343551819,1732719058114,-275.5,0.00031,4]
[343551820,1732719058123,-1000.0,0.00031012,2]
[343551821,1732719058132,-1000.0,0.00031021,2]
[343551822,1732719058142,-675.19284361,0.00031043,2]
[343551823,1732719058152,-1194.21384737,0.00031043,2]
[343551824,1732719058161,-1500.0,0.000311,2]
[343551825,1732719058171,-1500.0,0.000311,2]
[343551826,1732719058180,-1500.0,0.000311,2]
[343551827,1732719058189,-1500.0,0.000311,2]
[343551828,1732719058198,-1500.0,0.000311,2]
[343551829,1732719058208,-1500.0,0.000311,2]
[343551830,1732719058217,-1500.0,0.000311,2]
[343551831,1732719058227,-1618.19,0.000311,2]
[343551832,1732719058236,-1500.0,0.000311,2]
[343551833,1732719058246,-1500.0,0.000311,2]
[343551834,1732719058255,-1500.0,0.000311,2]
[343551835,1732719058264,-1009.30388336,0.00031118,4]
[343551836,1732719058274,-151.0,0.00031142,7]
[343551837,1732719058283,-151.0,0.00031142,7]
[343551838,1732719058293,-151.0,0.00031142,7]
[343551839,1732719058305,-168.490122,0.00031142,7]
[343551840,1732719058315,-151.0,0.00031142,7]
[343551841,1732719058326,-154.288495,0.00031142,7]
[343551842,1732719058336,-151.0,0.00031142,7]
[343551843,1732719058345,-151.0,0.00031142,7]
[343551844,1732719058356,-151.0,0.00031142,7]
[343551845,1732719058366,-151.0,0.00031142,7]
[343551846,1732719058376,-151.0,0.00031142,7]
[343551847,1732719058385,-151.0,0.00031142,7]
[343551848,1732719058396,-151.0,0.00031142,7]
[343551849,1732719058524,-151.0,0.00031142,7]
[343551850,1732719058534,-151.0,0.00031142,7]
[343551851,1732719058544,-151.0,0.00031142,7]
[343551852,1732719058555,-151.0,0.00031142,7]
[343551853,1732719058564,-151.0,0.00031142,7]
[343551854,1732719058574,-151.0,0.00031142,7]
[343551855,1732719058583,-151.0,0.00031142,7]
[343551856,1732719058592,-171.280714,0.00031142,7]
[343551857,1732719058602,-151.0,0.00031142,7]
[343551858,1732719058611,-268.229052,0.00031142,7]
[343551859,1732719058620,-268.229052,0.00031142,7]
[343551860,1732719058629,-268.229052,0.00031142,7]
[343551861,1732719058639,-268.229052,0.00031142,7]
[343551862,1732719058648,-268.229052,0.00031142,7]
[343551863,1732719058658,-268.229052,0.00031142,7]
[343551864,1732719058668,-268.229052,0.00031142,7]
[343551865,1732719058678,-268.229052,0.00031142,7]
[343551866,1732719058688,-268.229052,0.00031142,7]
[343551867,1732719058698,-268.229052,0.00031142,7]
[343551868,1732719058708,-268.229052,0.00031142,7]
[343551869,1732719058718,-268.229052,0.00031142,7]
[343551870,1732719058727,-268.229052,0.00031142,7]
[343551871,1732719058737,-268.229052,0.00031142,7]
[343551872,1732719058748,-268.229052,0.00031142,7]
[343551873,1732719058758,-268.229052,0.00031142,7]
[343551874,1732719058767,-268.229052,0.00031142,7]
[343551875,1732719058778,-268.229052,0.00031142,7]
[343551876,1732719058787,-268.229052,0.00031142,7]
[343551877,1732719058797,-268.229044,0.00031142,7]
[343551878,1732719058809,-151.0,0.00031142,7]
[343551879,1732719058818,-151.0,0.00031142,7]
[343551880,1732719058827,-151.0,0.00031142,7]
[343551881,1732719058837,-151.0,0.00031142,7]
[343551882,1732719058846,-151.0,0.00031142,7]
[343551883,1732719058855,-151.0,0.00031142,7]
[343551884,1732719058864,-151.0,0.00031142,7]
[343551885,1732719058873,-151.0,0.00031142,7]
[343551886,1732719058883,-151.0,0.00031142,7]
[343551887,1732719058893,-151.0,0.00031142,7]
[343551888,1732719058902,-151.0,0.00031142,7]
[343551889,1732719058911,-151.0,0.00031142,7]
[343551890,1732719058920,-151.0,0.00031142,7]
[343551891,1732719058930,-151.0,0.00031142,7]
[343551892,1732719058939,-151.0,0.00031142,7]
[343551893,1732719058948,-151.0,0.00031142,7]
[343551894,1732719058957,-151.0,0.00031142,7]
[343551895,1732719058966,-151.0,0.00031142,7]
[343551896,1732719058975,-243.854703,0.00031142,7]
[343551897,1732719058985,-151.0,0.00031142,7]
[343551898,1732719058995,-274.701766,0.00031142,7]
[343551899,1732719059004,-151.0,0.00031142,7]
[343551900,1732719059014,-151.0,0.00031142,7]
[343551901,1732719059023,-151.0,0.00031142,7]
[343551902,1732719059033,-151.0,0.00031142,7]
[343551903,1732719059043,-151.0,0.00031142,7]
[343551904,1732719059052,-151.0,0.00031142,7]
[343551905,1732719059063,-151.0,0.00031142,7]
[343551906,1732719059073,-151.0,0.00031142,7]
[343551907,1732719059082,-151.0,0.00031142,7]
[343551908,1732719059092,-151.0,0.00031142,7]
[343551909,1732719059102,-151.0,0.00031142,7]
[343551910,1732719059111,-151.0,0.00031142,7]
[343551911,1732719059121,-151.0,0.00031142,7]
[343551912,1732719059131,-151.0,0.00031142,7]
[343551913,1732719059140,-151.0,0.00031142,7]
[343551914,1732719059150,-151.0,0.00031142,7]
[343551915,1732719059160,-151.0,0.00031142,7]
[343551916,1732719059169,-151.0,0.00031142,7]
[343551917,1732719059179,-205.662998,0.00031142,7]
[343551918,1732719059190,-1166.084305,0.00031142,7]
[343551919,1732719059200,-1166.084305,0.00031142,7]
[343551920,1732719059210,-1166.084305,0.00031142,7]
[343551921,1732719059220,-1166.084305,0.00031142,7]
[343551922,1732719059230,-1166.084305,0.00031142,7]
[343551923,1732719059240,-1166.084305,0.00031142,7]
[343551924,1732719059249,-1166.084305,0.00031142,7]
[343551925,1732719059259,-1166.084305,0.00031142,7]
[343551926,1732719059269,-1166.084305,0.00031142,7]
[343551927,1732719059279,-1166.084305,0.00031142,7]
[343551928,1732719059288,-1166.084305,0.00031142,7]
[343551929,1732719059298,-1166.084305,0.00031142,7]
[343551930,1732719059312,-1166.084305,0.00031142,7]
[343551931,1732719059323,-1166.084305,0.00031142,7]
[343551932,1732719059334,-1166.084305,0.00031142,7]
[343551933,1732719059344,-1166.084305,0.00031142,7]
[343551934,1732719059355,-1166.084305,0.00031142,7]
[343551935,1732719059365,-1166.084305,0.00031142,7]
[343551936,1732719059375,-1166.084305,0.00031142,7]
[343551937,1732719059386,-1166.084302,0.00031142,7]
[343551938,1732719059397,-151.0,0.00031143,7]
[343551939,1732719059407,-151.0,0.00031143,7]
[343551940,1732719059416,-151.0,0.00031143,7]
[343551941,1732719059426,-156.558402,0.00031143,7]
[343551942,1732719059435,-151.0,0.00031143,7]
[343551943,1732719059445,-151.0,0.00031143,7]
[343551944,1732719059454,-151.0,0.00031143,7]
[343551945,1732719059464,-247.288393,0.00031143,7]
[343551946,1732719059474,-247.288393,0.00031143,7]
[343551947,1732719059484,-247.288393,0.00031143,7]
[343551948,1732719059494,-247.288393,0.00031143,7]
[343551949,1732719059504,-247.288393,0.00031143,7]
[343551950,1732719059514,-247.288393,0.00031143,7]
[343551951,1732719059523,-247.288393,0.00031143,7]
[343551952,1732719059533,-247.288393,0.00031143,7]
[343551953,1732719059543,-247.288393,0.00031143,7]
[343551954,1732719059554,-247.288393,0.00031143,7]
[343551955,1732719059565,-247.288393,0.00031143,7]
[343551956,1732719059574,-247.288393,0.00031143,7]
[343551957,1732719059584,-247.288393,0.00031143,7]
[343551958,1732719059594,-247.288393,0.00031143,7]
[343551959,1732719059604,-247.288393,0.00031143,7]
[343551960,1732719059613,-247.288393,0.00031143,7]
[343551961,1732719059623,-247.288393,0.00031143,7]
[343551962,1732719059633,-247.288393,0.00031143,7]
[343551963,1732719059642,-247.288393,0.00031143,7]
[343551964,1732719059652,-247.288401,0.00031143,7]
[343551965,1732719059662,-151.0,0.00031143,7]
[343551966,1732719059672,-151.0,0.00031143,7]
[343551967,1732719059683,-151.0,0.00031143,7]
[343551968,1732719059694,-151.0,0.00031178,7]
[343551969,1732719059705,-615.63233864,0.00031178,2]
[343551970,1732719059714,-260.71679391,0.000312,30]
[343551971,1732719059724,-153.44,0.000312,31]
[343551972,1732719059734,-153.44,0.000312,31]
[343551973,1732719059743,-153.44,0.000312,31]
[343551974,1732719059753,-153.44,0.000312,31]
[343551975,1732719059763,-153.44,0.000312,31]
[343551976,1732719059772,-153.44,0.000312,31]
[343551977,1732719059782,-153.44,0.000312,31]
[343551978,1732719059794,-153.44,0.000312,31]
[343551979,1732719059805,-153.44,0.000312,31]
[343551980,1732719059816,-153.44,0.000312,31]
[343551981,1732719059826,-153.44,0.000312,31]
[343551982,1732719059835,-153.44,0.000312,31]
[343551983,1732719059845,-153.44,0.000312,31]
[343551984,1732719059856,-153.44,0.000312,31]
[343551985,1732719059865,-153.44,0.000312,31]
[343551986,1732719059875,-153.44,0.000312,31]
[343551987,1732719059884,-153.44,0.000312,31]
[343551988,1732719059893,-153.44,0.000312,31]
[343551989,1732719059902,-153.44,0.000312,31]
[343551990,1732719059911,-153.44,0.000312,31]
[343551991,1732719059921,-616.0,0.000312,2]
[343551992,1732719059931,-823.0,0.00031224,2]
[343551993,1732719059940,-10000.0,0.00031232,6]
[343551994,1732719059950,-10000.0,0.00031232,12]
[343551995,1732719059960,-10000.0,0.00031232,13]
[343551996,1732719059969,-10000.0,0.00031232,7]
[343551997,1732719059979,-57925.05330424,0.00031233,2]
[343551998,1732719059989,-219.67312067,0.00031233,2]
[343551999,1732719059998,-151.0,0.00031233,7]
[343552000,1732719060009,-151.0,0.00031233,7]
[343552001,1732719060019,-151.0,0.00031233,7]
[343552002,1732719060029,-151.0,0.00031233,7]
[343552003,1732719060038,-151.0,0.00031233,7]
[343552004,1732719060047,-151.0,0.00031233,7]
[343552005,1732719060058,-182.750814,0.00031233,7]
[343552006,1732719060068,-151.0,0.00031233,7]
[343552007,1732719060078,-151.0,0.00031233,7]
[343552008,1732719060088,-151.0,0.00031233,7]
[343552009,1732719060098,-151.0,0.00031233,7]
[343552010,1732719060107,-151.0,0.00031233,7]
[343552011,1732719060116,-151.0,0.00031233,7]
[343552012,1732719060125,-151.0,0.00031233,7]
[343552013,1732719060134,-151.0,0.00031233,7]
[343552014,1732719060144,-151.0,0.00031233,7]
[343552015,1732719060153,-151.0,0.00031233,7]
[343552016,1732719060163,-214.025004,0.00031233,7]
[343552017,1732719060172,-327621.32387201,0.00031233,10]
[343552018,1732719060350,-123.04375615,0.00031233,10]
[343552019,1732719060522,-3724.3,0.00024657,3]
[343552020,1732719060532,-3724.3,0.00024657,3]
[343552021,1732719060543,-3724.3,0.00024657,3]
[343552022,1732719060552,-3724.3,0.00024657,3]
[343552023,1732719060564,-3229.32883482,0.00024657,3]
[343552024,1732719060576,-494.97116518,0.00024657,3]
[343552025,1732719060585,-500.0,0.00024657,3]
[343552026,1732719060595,-3724.3,0.00024657,3]
[343552027,1732719060604,-3724.3,0.00024657,3]
[343552028,1732719060614,-1011.12883482,0.00024657,3]
[343552029,1732719060639,-2713.17116518,0.00024657,3]
[343552030,1732719060648,-3724.3,0.00024657,3]
[343552031,1732719060657,-3724.3,0.00024657,3]
[343552032,1732719060667,-3724.3,0.00024657,3]
[343552033,1732719060676,-3724.3,0.00024657,3]
[343552034,1732719060686,-200.92030327,0.00027798,3]
[343552035,1732719060695,-200.43569899,0.00027798,3]
[343552036,1732719060704,-151.12436566,0.00027798,3]
[343552037,1732719060714,-150.17,0.00027798,3]
[343552038,1732719060723,-150.17,0.00028072,3]
[343552039,1732719060732,-150.17,0.00028346,3]
[343552040,1732719060742,-150.17,0.0002862,3]
[343552041,1732719060751,-35865.86316129,0.00031233,10]
[343552042,1732719060763,-50358.05301963,0.00031233,10]
[343552043,1732719060875,204.0,0.00022,2]
[343552044,1732719060913,204.0,0.00022192,2]
[343552045,1732719060929,-3724.3,0.00024657,3]
[343552046,1732719060939,-3724.3,0.00024657,3]
[343552047,1732719060948,-3724.3,0.00024657,3]
[343552048,1732719060957,-3724.3,0.00024657,3]
[343552049,1732719060966,-2671.30000001,0.00024657,3]
[343552050,1732719060977,-1052.99999999,0.00024657,3]
[343552051,1732719060986,-500.0,0.00027798,3]
[343552052,1732719061001,-500.0,0.00028072,3]
[343552053,1732719061011,-500.0,0.00028346,3]
[343552054,1732719061020,-500.0,0.0002862,3]
[343552055,1732719061029,-1325462.50888822,0.00031233,10]
[343552056,1732719061080,155.0,0.00022,2]
[343552058,1732719294266,163.20346,0.00013973,2]
[343552059,1732719325156,173.283643,0.00022181,2]
[343552060,1732719348739,160.0,0.00022,2]